bitfinex/quotes_BTCUSD_20251205
["timestamp","ask_amount","ask_price","bid_price","bid_amount"]
[1764917917024,0.02054626,92280.0,92279.0,0.38426312]
[1764917917227,0.02054626,92280.0,92279.0,0.36865312]
[1764917919220,0.02054626,92280.0,92279.0,0.46890611]
[1764917919559,0.02054626,92280.0,92279.0,0.50066611]
[1764917919901,0.02054626,92280.0,92279.0,0.49466611]
[1764917920306,0.02054626,92280.0,92279.0,0.50266611]
[1764917920512,0.02054626,92280.0,92279.0,0.49466611]
[1764917920935,0.02054626,92280.0,92279.0,0.50166611]
[1764917921491,0.02054626,92280.0,92279.0,0.50266611]
[1764917921902,0.02054626,92280.0,92279.0,0.50166611]
[1764917922097,0.02054626,92280.0,92279.0,0.50266611]
[1764917928824,0.02054626,92280.0,92279.0,1.61339711]
[1764917929075,0.02054626,92280.0,92279.0,1.32108811]
[1764917929247,0.02054626,92280.0,92279.0,1.12018611]
[1764917929482,0.02054626,92280.0,92279.0,0.60362511]
[1764917929983,0.018412,92280.0,92279.0,0.60362511]
[1764917956988,0.018412,92280.0,92279.0,0.58654511]
[1764917957220,0.018412,92280.0,92279.0,0.71650811]
[1764917970850,0.018412,92280.0,92279.0,0.66521611]
[1764917972219,0.018412,92280.0,92279.0,0.44785611]
[1764917972439,0.018412,92280.0,92279.0,0.46493611]
[1764917972737,0.018412,92280.0,92279.0,0.43317611]
[1764917973762,0.018412,92280.0,92279.0,0.47260611]
[1764917986410,0.018412,92280.0,92279.0,0.49101811]
[1764918001041,0.018412,92280.0,92279.0,0.45158811]
[1764918001576,0.018412,92280.0,92279.0,0.45058811]
[1764918001899,0.018412,92280.0,92279.0,0.45158811]
[1764918002098,0.058212,92280.0,92279.0,0.36398512]
[1764918002525,0.058212,92280.0,92279.0,0.38906512]
[1764918002729,0.033782,92280.0,92279.0,0.38906512]
[1764918002880,0.018412,92280.0,92279.0,0.38906512]
[1764918003299,0.018412,92280.0,92279.0,0.38106512]
[1764918003507,0.018412,92280.0,92279.0,0.38606512]
[1764918003947,0.018412,92280.0,92279.0,0.38706512]
[1764918006820,0.058212,92280.0,92279.0,0.04565312]
[1764918007027,0.058212,92280.0,92279.0,0.02857312]
[1764918007363,0.058212,92280.0,92279.0,0.04565312]
[1764918008867,0.058212,92280.0,92279.0,0.02857312]
[1764918009071,0.058212,92280.0,92279.0,0.04565312]
[1764918010101,0.058212,92280.0,92279.0,0.04465312]
[1764918010444,0.058212,92280.0,92279.0,0.03965312]
[1764918010445,0.27494368,92280.0,92279.0,0.03965312]
[1764918010580,0.27494368,92280.0,92279.0,0.04565312]
[1764918010931,0.27494368,92280.0,92279.0,0.02857312]
[1764918011126,0.27494368,92280.0,92279.0,0.04465312]
[1764918011469,0.27494368,92280.0,92279.0,0.02757312]
[1764918011721,0.27494368,92280.0,92279.0,0.02308]
[1764918011925,0.2167525,92272.0,92271.0,0.02157312]
[1764918012127,0.2167525,92272.0,92271.0,0.03865312]
[1764918012360,0.01241,92275.0,92274.0,0.02157312]
[1764918012697,0.01806574,92280.0,92279.0,0.02157312]
[1764918013477,0.05855574,92280.0,92279.0,0.02157312]
[1764918013941,0.05855574,92280.0,92279.0,0.02557312]
[1764918016621,0.05855574,92280.0,92279.0,0.24230715]
[1764918016985,0.05855574,92280.0,92279.0,0.02557312]
[1764918017935,0.05855574,92280.0,92279.0,0.24230715]
[1764918018131,0.058902,92280.0,92279.0,0.02557312]
[1764918028176,0.058902,92280.0,92279.0,0.04265312]
[1764918032832,0.018412,92280.0,92279.0,0.04265312]
[1764918033033,0.058902,92280.0,92279.0,0.04265312]
[1764918034302,0.034432,92280.0,92279.0,0.04265312]
[1764918034666,0.25116368,92280.0,92279.0,0.04265312]
[1764918034864,0.27563368,92280.0,92279.0,0.04265312]
[1764918035273,0.058902,92280.0,92279.0,0.04265312]
[1764918035645,0.034432,92280.0,92279.0,0.04265312]
[1764918035859,0.018412,92280.0,92279.0,0.04265312]
[1764918036508,0.058902,92280.0,92279.0,0.04265312]
[1764918056014,0.058902,92280.0,92279.0,0.25938715]
[1764918056393,0.058902,92280.0,92279.0,0.04265312]
[1764918056651,0.058902,92280.0,92279.0,0.25938715]
[1764918056848,0.058902,92280.0,92279.0,0.24230715]
[1764918057074,0.058902,92280.0,92279.0,0.25938715]
[1764918060587,0.018412,92280.0,92279.0,0.25938715]
[1764918061087,0.057702,92280.0,92279.0,0.25938715]
[1764918066250,0.057702,92280.0,92279.0,0.04265312]
[1764918066452,0.057702,92280.0,92279.0,0.25938715]
[1764918066858,0.057702,92280.0,92279.0,0.04265312]
[1764918072812,0.057702,92280.0,92279.0,0.02557312]
[1764918073039,0.057702,92280.0,92279.0,0.04265312]
[1764918074079,0.057702,92280.0,92279.0,0.02557312]
[1764918074218,0.057702,92280.0,92279.0,0.04265312]
[1764918076133,0.057702,92280.0,92279.0,0.02557312]
[1764918076330,0.057702,92280.0,92279.0,0.004]
[1764918076540,0.057702,92280.0,92279.0,0.02108]
[1764918077663,0.057702,92280.0,92279.0,0.01708]
[1764918077866,0.27443368,92280.0,92279.0,0.01708]
[1764918082066,0.01083822,92266.0,92265.0,0.02157312]
[1764918082276,0.03632822,92266.0,92265.0,0.03865312]
[1764918082572,0.06079822,92266.0,92265.0,0.03865312]
[1764918082975,0.04996,92266.0,92265.0,0.03865312]
[1764918083128,0.04996,92266.0,92265.0,0.25942004]
[1764918083329,0.04996,92266.0,92265.0,0.04265312]
[1764918083534,0.04996,92266.0,92265.0,0.04365312]
[1764918090815,0.04996,92266.0,92265.0,0.005]
[1764918090816,0.26672457,92266.0,92265.0,0.005]
[1764918091248,0.29926798,92266.0,92265.0,0.005]
[1764918091456,0.29926798,92266.0,92265.0,0.004]
[1764918092014,0.21678336,92258.0,92257.0,0.03865312]
[1764918092228,0.24512336,92258.0,92257.0,0.03865312]
[1764918092389,0.26959336,92258.0,92257.0,0.03865312]
[1764918093417,0.26959336,92258.0,92257.0,0.03965312]
[1764918097317,0.26959336,92258.0,92257.0,0.02257312]
[1764918100828,0.05281,92258.0,92257.0,0.02257312]
[1764918103976,0.26959336,92258.0,92257.0,0.02257312]
[1764918105686,0.26959336,92258.0,92257.0,0.01808]
[1764918106662,0.26959336,92258.0,92257.0,0.01708]
[1764918107288,0.21679041,92255.0,92254.0,0.02157312]
[1764918107486,0.22766201,92242.0,92241.0,0.02157312]
[1764918107835,0.24432201,92242.0,92241.0,0.03865312]
[1764918107945,0.26848201,92242.0,92241.0,0.03865312]
[1764918108706,0.26848201,92242.0,92241.0,0.04265312]
[1764918109285,0.26848201,92242.0,92241.0,0.04365312]
[1764918110892,0.26797576,92242.0,92241.0,0.04365312]
[1764918111086,0.26797576,92242.0,92241.0,0.04265312]
[1764918111558,0.26797576,92242.0,92241.0,0.03865312]
[1764918111767,0.05115479,92242.0,92241.0,0.03865312]
[1764918111985,0.05115479,92242.0,92241.0,0.04165312]
[1764918113717,0.04082,92242.0,92241.0,0.04165312]
[1764918117135,0.25764097,92242.0,92241.0,0.04165312]
[1764918118350,0.04082,92242.0,92241.0,0.04165312]
[1764918118724,0.25764097,92242.0,92241.0,0.04165312]
[1764918121130,0.25764097,92242.0,92241.0,0.03865312]
[1764918121330,0.04082,92242.0,92241.0,0.03865312]
[1764918121531,0.04082,92242.0,92241.0,0.04165312]
[1764918125608,0.04082,92242.0,92241.0,0.003]
[1764918125815,0.04082,92242.0,92241.0,0.02008]
[1764918127113,0.04082,92242.0,92241.0,0.01708]
[1764918127677,0.04082,92242.0,92241.0,0.03865312]
[1764918137136,0.04082,92242.0,92241.0,0.02157312]
[1764918137503,0.04082,92242.0,92241.0,0.03865312]
[1764918137635,0.04082,92242.0,92241.0,0.02157312]
[1764918137840,0.04082,92242.0,92241.0,0.03865312]
[1764918138047,0.06791161,92242.0,92241.0,0.03865312]
[1764918141896,0.04082,92242.0,92241.0,0.03865312]
[1764918158050,0.03254962,92245.0,92242.0,0.22766201]
[1764918158398,0.03254962,92245.0,92244.0,0.02157312]
[1764918158553,0.01216,92246.0,92245.0,0.23838703]
[1764918159710,0.01216,92246.0,92245.0,0.23938703]
[1764918163002,0.03584,92246.0,92245.0,0.23938703]
[1764918163198,0.05105,92246.0,92245.0,0.23938703]
[1764918168859,0.01216,92246.0,92245.0,0.23938703]
[1764918169064,0.00885,92250.0,92249.0,0.23837763]
[1764918169586,0.02518,92250.0,92249.0,0.23837763]
[1764918169996,0.04855,92250.0,92249.0,0.23837763]
[1764918171714,0.00885,92250.0,92249.0,0.23837763]
[1764918172264,0.04855,92250.0,92249.0,0.23837763]
[1764918172715,0.04855,92250.0,92249.0,0.21680451]
[1764918172927,0.04855,92250.0,92249.0,0.23837763]
[1764918181696,0.00885,92250.0,92249.0,0.23837763]
[1764918181926,0.01216,92252.0,92251.0,0.23837293]
[1764918182173,0.01189,92258.0,92257.0,0.21678571]
[1764918182384,0.01189,92258.0,92257.0,0.23835883]
[1764918182597,0.01189,92262.0,92261.0,0.23834943]
[1764918183012,0.02822,92262.0,92261.0,0.02157312]
[1764918183219,0.05159,92262.0,92261.0,0.02157312]
[1764918183429,0.05159,92262.0,92261.0,0.23834943]
[1764918184262,0.05159,92262.0,92261.0,0.02157312]
[1764918185355,0.05159,92262.0,92261.0,0.02257312]
[1764918185772,0.05159,92262.0,92261.0,0.03965312]
[1764918187334,0.26836396,92262.0,92261.0,0.02257312]
[1764918187547,0.26836396,92262.0,92261.0,0.03965312]
[1764918192304,0.26836396,92262.0,92261.0,0.001]
[1764918194404,0.26836396,92262.0,92261.0,0.02257312]
[1764918194627,0.26836396,92262.0,92261.0,0.02157312]
[1764918202719,0.26836396,92262.0,92260.0,0.03865312]
[1764918202933,0.01084093,92243.0,92242.0,0.02157312]
[1764918203141,0.03421093,92243.0,92242.0,0.03865312]
[1764918203321,0.05742093,92243.0,92242.0,0.03865312]
[1764918203959,0.05742093,92243.0,92242.0,0.02157312]
[1764918204173,0.05742093,92243.0,92242.0,0.04165312]
[1764918206237,0.05742093,92243.0,92242.0,0.02457312]
[1764918206439,0.05742093,92243.0,92242.0,0.04165312]
[1764918207078,0.05742093,92243.0,92242.0,0.03865312]
[1764918207604,0.05742093,92243.0,92242.0,0.03965312]
[1764918208155,0.05742093,92243.0,92242.0,0.01808]
[1764918211706,0.05742093,92243.0,92242.0,0.01708]
[1764918214549,0.2277074,92224.0,92223.0,0.02157312]
[1764918214746,0.01084316,92224.0,92223.0,0.03865312]
[1764918215170,0.04953316,92224.0,92223.0,0.03865312]
[1764918217000,0.04953316,92224.0,92223.0,0.04265312]
[1764918218975,0.01548,92224.0,92223.0,0.04265312]
[1764918220555,0.01548,92224.0,92223.0,0.02108]
[1764918220774,0.03905,92224.0,92223.0,0.04265312]
[1764918221257,0.25591328,92224.0,92223.0,0.04265312]
[1764918226671,0.23234328,92224.0,92223.0,0.04265312]
[1764918226877,0.01247,92225.0,92224.0,0.02157312]
[1764918228559,0.01247,92225.0,92224.0,0.02457312]
[1764918232744,0.01247,92229.0,92228.0,0.02157312]
[1764918233344,0.03707,92229.0,92228.0,0.02157312]
[1764918233710,0.01247,92229.0,92228.0,0.02157312]
[1764918234112,0.05366,92229.0,92228.0,0.02157312]
[1764918235043,0.05366,92229.0,92228.0,0.02357312]
[1764918240315,0.02216222,92232.0,92229.0,0.2276941]
[1764918240316,0.01132,92232.0,92229.0,0.2276941]
[1764918240515,0.01247,92235.0,92234.0,0.02157312]
[1764918240699,0.01247,92235.0,92234.0,0.03865312]
[1764918240899,0.22767024,92239.0,92235.0,0.01084187]
[1764918241183,0.21679795,92252.0,92246.0,0.01084057]
[1764918241184,0.01084022,92249.0,92246.0,0.01084057]
[1764918241413,0.01084022,92249.0,92238.0,0.02516]
[1764918241414,0.22764932,92248.0,92247.0,0.03865312]
[1764918241605,0.26367932,92248.0,92247.0,0.03865312]
[1764918241814,0.28026932,92248.0,92247.0,0.03865312]
[1764918242257,0.21682873,92239.0,92238.0,0.02157312]
[1764918242490,0.21682873,92239.0,92238.0,0.03865312]
[1764918242718,0.25801873,92239.0,92238.0,0.03865312]
[1764918243126,0.04119,92239.0,92238.0,0.03865312]
[1764918245302,0.04119,92239.0,92238.0,0.04065312]
[1764918245554,0.00882,92240.0,92238.0,0.04065312]
[1764918245797,0.01084081,92244.0,92243.0,0.02157312]
[1764918246219,0.05203081,92244.0,92243.0,0.02157312]
[1764918246963,0.04119,92244.0,92243.0,0.02157312]
[1764918247410,0.04119,92244.0,92243.0,0.02257312]
[1764918248619,0.01143,92245.0,92244.0,0.02157312]
[1764918248817,0.03583987,92252.0,92247.0,0.23838233]
[1764918249147,0.02226999,92251.0,92250.0,0.02157312]
[1764918249289,0.02226999,92251.0,92250.0,0.03865312]
[1764918249933,0.01143,92251.0,92250.0,0.03865312]
[1764918251303,0.05224,92251.0,92250.0,0.03865312]
[1764918251917,0.01143,92251.0,92250.0,0.03865312]
[1764918252608,0.01143,92254.0,92251.0,0.2276398]
[1764918252815,0.01143,92254.0,92253.0,0.02157312]
[1764918253051,0.02317905,92259.0,92258.0,0.02157312]
[1764918253521,0.04817905,92259.0,92258.0,0.02157312]
[1764918253723,0.03734,92259.0,92258.0,0.02157312]
[1764918254920,0.05315,92259.0,92258.0,0.02157312]
[1764918255734,0.01234,92263.0,92262.0,0.02157312]
[1764918256033,0.01234,92263.0,92262.0,0.03865312]
[1764918256397,0.03734,92263.0,92262.0,0.03865312]
[1764918257804,0.03734,92263.0,92262.0,0.03965312]
[1764918263015,0.01234,92263.0,92262.0,0.03965312]
[1764918264612,0.05315,92263.0,92262.0,0.03965312]
[1764918265151,0.01234,92263.0,92262.0,0.03965312]
[1764918268663,0.03734,92268.0,92267.0,0.21676222]
[1764918268874,0.01234,92268.0,92267.0,0.23833534]
[1764918269049,0.05315,92268.0,92267.0,0.23833534]
[1764918269605,0.05315,92268.0,92267.0,0.21676222]
[1764918269807,0.05315,92268.0,92265.0,0.03241146]
[1764918270006,0.025,92267.0,92265.0,0.03241146]
[1764918270218,0.01581,92266.0,92265.0,0.03241146]
[1764918270416,0.01581,92266.0,92265.0,0.24917838]
[1764918271062,0.01581,92266.0,92265.0,0.25017838]
[1764918271664,0.04081,92266.0,92265.0,0.03341146]
[1764918272164,0.04081,92266.0,92265.0,0.03241146]
[1764918272565,0.04081,92266.0,92265.0,0.25017838]
[1764918273287,0.01234,92268.0,92267.0,0.02157312]
[1764918273872,0.02815,92268.0,92265.0,0.22860526]
[1764918274074,0.05315,92268.0,92267.0,0.02157312]
[1764918274272,0.01581,92266.0,92265.0,0.001]
[1764918274658,0.04081,92266.0,92265.0,0.21776692]
[1764918274860,0.04081,92266.0,92265.0,0.001]
[1764918275099,0.04081,92266.0,92263.0,0.0324117]
[1764918275300,0.02815,92264.0,92263.0,0.24918332]
[1764918275765,0.05315,92264.0,92263.0,0.02157312]
[1764918276728,0.05315,92264.0,92263.0,0.02257312]
[1764918277736,0.05069,92264.0,92263.0,0.02257312]
[1764918277910,0.05069,92264.0,92263.0,0.03965312]
[1764918278783,0.05069,92264.0,92263.0,0.02257312]
[1764918278983,0.05069,92264.0,92263.0,0.03965312]
[1764918282509,0.05069,92264.0,92263.0,0.01808]
[1764918282725,0.05069,92264.0,92263.0,0.03965312]
[1764918283157,0.05069,92264.0,92263.0,0.02257312]
[1764918283363,0.05069,92264.0,92263.0,0.03965312]
[1764918290514,0.05069,92264.0,92263.0,0.01808]
[1764918290717,0.05069,92264.0,92263.0,0.03965312]
[1764918300414,0.01245,92264.0,92263.0,0.03965312]
[1764918301235,0.22909394,92271.0,92267.0,0.01083811]
[1764918301477,0.01234,92271.0,92270.0,0.02157312]
[1764918302098,0.03602,92271.0,92270.0,0.02157312]
[1764918302243,0.05128,92271.0,92270.0,0.02157312]
[1764918304342,0.05117161,92271.0,92270.0,0.02157312]
[1764918306031,0.01083893,92260.0,92259.0,0.02157312]
[1764918306172,0.01083869,92262.0,92261.0,0.02157312]
[1764918306602,0.02682,92262.0,92261.0,0.02157312]
[1764918306887,0.0505,92262.0,92261.0,0.03865312]
[1764918307312,0.0505,92262.0,92261.0,0.04065312]
[1764918319159,0.01156,92262.0,92261.0,0.04065312]
[1764918319463,0.03634,92267.0,92266.0,0.02157312]
[1764918319842,0.05154,92267.0,92266.0,0.02157312]
[1764918321612,0.02721,92267.0,92266.0,0.02157312]
[1764918322518,0.01201,92267.0,92266.0,0.02157312]
[1764918323087,0.03634,92267.0,92266.0,0.02157312]
[1764918328452,0.01201,92284.0,92272.0,0.01083752]
[1764918328705,0.02890232,92280.0,92275.0,0.02157312]
[1764918328906,0.01083681,92278.0,92275.0,0.02157312]
[1764918329949,0.01806574,92280.0,92275.0,0.06203312]
[1764918330216,0.01806574,92280.0,92275.0,0.41295052]
[1764918330766,0.01806574,92280.0,92275.0,0.38885052]
[1764918331439,0.01806574,92280.0,92275.0,0.37249052]
[1764918331624,0.01806574,92280.0,92275.0,0.37649052]
[1764918331793,0.01806574,92280.0,92275.0,0.02557312]
[1764918331794,0.03976085,92276.0,92275.0,0.02557312]
[1764918331997,0.03976085,92276.0,92275.0,0.04265312]
[1764918333229,0.00023085,92276.0,92275.0,0.04265312]
[1764918333638,0.00023085,92276.0,92275.0,0.03865312]
[1764918334055,0.00023085,92276.0,92275.0,0.03965312]
[1764918335215,0.00023085,92276.0,92275.0,0.08011312]
[1764918336296,0.00023085,92276.0,92275.0,0.03965312]
[1764918336701,0.00023085,92276.0,92275.0,0.03865312]
[1764918336902,0.00023085,92276.0,92275.0,0.04265312]
[1764918337301,0.00023085,92276.0,92275.0,0.03865312]
[1764918337485,0.00023085,92276.0,92275.0,0.04165312]
[1764918339255,0.03975085,92276.0,92275.0,0.04165312]
[1764918339432,0.03975085,92276.0,92275.0,0.25839654]
[1764918340864,0.01619085,92276.0,92275.0,0.25839654]
[1764918342042,0.03975085,92276.0,92275.0,0.25839654]
[1764918342868,0.01619085,92276.0,92275.0,0.25839654]
[1764918343395,0.00023085,92276.0,92275.0,0.25839654]
[1764918345979,0.00023085,92276.0,92275.0,0.27828342]
[1764918346223,0.00023085,92276.0,92275.0,0.29985654]
[1764918346396,0.00023085,92276.0,92275.0,0.27502654]
[1764918346575,0.00023085,92276.0,92275.0,0.25794654]
[1764918346774,0.00023085,92276.0,92275.0,0.27502654]
[1764918347560,0.00023085,92276.0,92275.0,0.29985654]
[1764918348936,0.00023085,92276.0,92275.0,0.29685654]
[1764918349659,0.00023085,92276.0,92275.0,0.30185654]
[1764918350258,0.00023085,92276.0,92275.0,0.27702654]
[1764918350596,0.00023085,92276.0,92275.0,0.30185654]
[1764918351977,0.00023085,92276.0,92275.0,0.27702654]
[1764918352166,0.00023085,92276.0,92275.0,0.30185654]
[1764918353224,0.00023085,92276.0,92275.0,0.27702654]
[1764918353438,0.00023085,92276.0,92275.0,0.26039654]
[1764918354510,0.02349085,92276.0,92275.0,0.26039654]
[1764918354914,0.03935085,92276.0,92275.0,0.25539654]
[1764918355246,0.03935085,92276.0,92275.0,0.25839654]
[1764918355599,0.01609085,92276.0,92275.0,0.25839654]
[1764918357083,0.03935085,92276.0,92275.0,0.04165312]
[1764918360539,0.00023085,92276.0,92275.0,0.04165312]
[1764918363028,0.00023085,92276.0,92275.0,0.08311312]
[1764918363304,0.00023085,92276.0,92275.0,0.29985654]
[1764918363914,0.00023085,92276.0,92275.0,0.63201654]
[1764918364114,0.00023085,92276.0,92275.0,0.65447206]
[1764918365109,0.00023085,92276.0,92275.0,0.65547206]
[1764918365428,0.00023085,92276.0,92275.0,0.65147206]
[1764918365832,0.00023085,92276.0,92275.0,0.65747206]
[1764918366090,0.00023085,92276.0,92275.0,0.71999505]
[1764918366975,0.00023085,92276.0,92275.0,0.72099505]
[1764918369066,0.00023085,92276.0,92275.0,0.71999505]
[1764918370076,0.00023085,92276.0,92275.0,0.71399505]
[1764918370274,0.00023085,92276.0,92275.0,0.72299505]
[1764918374584,0.00023085,92276.0,92275.0,0.70591505]
[1764918374745,0.00023085,92276.0,92275.0,0.72299505]
[1764918377335,0.00023085,92276.0,92275.0,0.70591505]
[1764918377523,0.00023085,92276.0,92275.0,0.72299505]
[1764918380704,0.00023085,92276.0,92275.0,0.70591505]
[1764918380911,0.00023085,92276.0,92275.0,0.72299505]
[1764918382304,0.00023085,92276.0,92275.0,0.70591505]
[1764918382512,0.00023085,92276.0,92275.0,0.72299505]
[1764918383548,0.01350277,92280.0,92279.0,0.56130715]
[1764918383768,0.01350277,92280.0,92279.0,0.59443715]
[1764918384007,0.01350277,92280.0,92279.0,0.61710715]
[1764918384211,0.01350277,92280.0,92279.0,0.63060992]
[1764918384417,0.01350277,92280.0,92279.0,1.76866091]
[1764918384605,0.01350277,92280.0,92279.0,1.79473748]
[1764918384929,0.01350277,92280.0,92279.0,1.76866091]
[1764918385118,0.01350277,92280.0,92279.0,1.69619791]
[1764918385356,0.01350277,92280.0,92279.0,0.86372991]
[1764918385968,0.01350277,92280.0,92279.0,0.87072991]
[1764918386182,0.01350277,92280.0,92279.0,0.86472991]
[1764918386602,0.01350277,92280.0,92279.0,0.68605291]
[1764918386810,0.01350277,92280.0,92279.0,0.70313291]
[1764918387001,0.01350277,92280.0,92279.0,0.70413291]
[1764918387330,0.01350277,92280.0,92279.0,0.68605291]
[1764918387528,0.01350277,92280.0,92279.0,0.70313291]
[1764918387732,0.01350277,92280.0,92279.0,0.69413291]
[1764918389048,0.01350277,92280.0,92279.0,0.70113291]
[1764918393500,0.01350277,92280.0,92279.0,0.5999568]
[1764918393685,0.01350277,92280.0,92279.0,0.63860992]
[1764918395700,0.01350277,92280.0,92279.0,0.36607589]
[1764918396078,0.01350277,92280.0,92279.0,0.02508]
[1764918396927,0.01350277,92280.0,92279.0,0.01708]
[1764918397230,0.01350277,92280.0,92279.0,0.04165312]
[1764918399015,0.01350277,92280.0,92279.0,0.02457312]
[1764918399225,0.01350277,92280.0,92279.0,0.04165312]
[1764918406615,0.06565277,92280.0,92279.0,0.04165312]
[1764918406819,0.06565277,92280.0,92279.0,0.02008]
[1764918406994,0.04106277,92280.0,92279.0,0.04165312]
[1764918407173,0.02566277,92280.0,92279.0,0.04165312]
[1764918411138,0.01350277,92280.0,92279.0,0.04165312]
[1764918413362,0.01350277,92280.0,92279.0,0.36465312]
[1764918415889,0.01350277,92280.0,92279.0,0.38102312]
[1764918417293,0.01350277,92280.0,92279.0,0.40473312]
[1764918419968,0.01350277,92280.0,92279.0,0.38102312]
[1764918423216,0.01350277,92280.0,92279.0,0.40473312]
[1764918426635,0.01350277,92280.0,92279.0,0.46725611]
[1764918427596,0.01350277,92280.0,92279.0,0.46425611]
[1764918427809,0.01350277,92280.0,92279.0,0.47125611]
[1764918428875,0.01350277,92280.0,92279.0,0.44968299]
[1764918429102,0.01350277,92280.0,92279.0,0.47125611]
[1764918432954,0.01350277,92280.0,92279.0,0.44968299]
[1764918433169,0.01350277,92280.0,92279.0,0.47125611]
[1764918437235,0.01350277,92280.0,92279.0,0.48475888]
[1764918438091,0.01350277,92280.0,92279.0,0.48375888]
[1764918438503,0.01350277,92280.0,92279.0,0.48475888]
[1764918438705,0.01350277,92280.0,92279.0,2.02155188]
[1764918438890,0.01350277,92280.0,92279.0,1.93132488]
[1764918439092,0.01350277,92280.0,92279.0,1.92532488]
[1764918439477,0.01350277,92280.0,92279.0,1.93432488]
[1764918444676,0.01350277,92280.0,92279.0,1.41937788]
[1764918444834,0.01350277,92280.0,92279.0,0.97873988]
[1764918447145,0.0002,92320.0,92319.0,0.02157312]
[1764918447345,0.0002,92320.0,92319.0,0.27087324]
[1764918447544,0.0002,92320.0,92319.0,0.29559324]
[1764918449388,0.0002,92320.0,92319.0,0.29859324]
[1764918451212,0.0002,92320.0,92319.0,0.27387324]
[1764918451887,0.0002,92320.0,92319.0,0.29859324]
[1764918452691,0.0002,92320.0,92319.0,0.62159324]
[1764918455000,0.0002,92320.0,92319.0,0.61859324]
[1764918455378,0.0002,92320.0,92319.0,0.62359324]
[1764918457724,0.00123824,92320.0,92319.0,0.62359324]
[1764918458090,0.00123824,92320.0,92319.0,0.68611623]
[1764918463088,0.00123824,92320.0,92319.0,0.66403623]
[1764918463394,0.00123824,92320.0,92319.0,0.68211623]
[1764918463624,0.00123824,92320.0,92319.0,0.68911623]
[1764918463800,0.00123824,92320.0,92319.0,1.63534323]
[1764918464010,0.00123824,92320.0,92319.0,1.50155223]
[1764918464839,0.00123824,92320.0,92319.0,1.58246724]
[1764918465940,0.0002,92340.0,92319.0,1.58246724]
[1764918465941,0.0002,92340.0,92339.0,0.62368931]
[1764918466140,0.0002,92340.0,92339.0,0.65672931]
[1764918466411,0.0002,92340.0,92339.0,0.68118931]
[1764918466737,0.0002,92340.0,92339.0,0.685523]
[1764918467207,0.0002,92340.0,92339.0,0.687523]
[1764918468164,0.0002,92340.0,92339.0,0.668443]
[1764918468629,0.0002,92340.0,92339.0,0.692523]
[1764918472560,0.0002,92340.0,92339.0,0.691523]
[1764918472819,0.0002,92340.0,92339.0,0.686523]
[1764918473139,0.0002,92340.0,92339.0,0.693523]
[1764918473750,0.0002,92360.0,92348.0,0.06252299]
[1764918474048,0.0002,92360.0,92349.0,0.32615586]
[1764918474270,0.0002,92360.0,92349.0,0.35061586]
[1764918474633,0.0002,92360.0,92349.0,0.36144223]
[1764918475359,0.01238,92357.0,92349.0,0.27945924]
[1764918475632,0.01082778,92355.0,92349.0,0.28057924]
[1764918475827,0.0108279,92354.0,92349.0,0.28057924]
[1764918476237,0.01082766,92356.0,92349.0,0.28057924]
[1764918476439,0.01082766,92356.0,92349.0,0.27557924]
[1764918476814,0.00106474,92350.0,92349.0,0.27957924]
[1764918477019,0.00106474,92350.0,92349.0,0.03639949]
[1764918477221,0.02505474,92350.0,92349.0,0.03639949]
[1764918477453,0.04111474,92350.0,92349.0,0.04265312]
[1764918477582,0.04111474,92350.0,92349.0,0.36565312]
[1764918477989,0.04111474,92350.0,92349.0,0.36165312]
[1764918478192,0.04111474,92350.0,92349.0,0.36465312]
[1764918479067,0.04111474,92350.0,92349.0,0.34757312]
[1764918479352,0.04111474,92350.0,92349.0,0.36465312]
[1764918479510,0.04111474,92350.0,92349.0,0.58122287]
[1764918479709,0.04111474,92350.0,92349.0,0.04165312]
[1764918480129,0.04111474,92350.0,92349.0,0.25822287]
[1764918480335,0.01712474,92350.0,92349.0,0.25822287]
[1764918480738,0.00106474,92350.0,92349.0,0.25822287]
[1764918480965,0.00106474,92350.0,92349.0,0.58122287]
[1764918481335,0.00106474,92350.0,92349.0,0.62164287]
[1764918481529,0.00106474,92350.0,92349.0,0.60006975]
[1764918481746,0.00106474,92350.0,92349.0,0.69499258]
[1764918482566,0.00106474,92350.0,92349.0,0.69199258]
[1764918482761,0.00106474,92350.0,92349.0,0.69899258]
[1764918488763,0.0002,92360.0,92349.0,0.69899258]
[1764918488764,0.0002,92360.0,92350.0,0.38652298]
[1764918488900,0.0002,92360.0,92359.0,2.63904241]
[1764918489090,0.0002,92360.0,92359.0,2.12701598]
[1764918489299,0.0002,92360.0,92359.0,2.12363941]
[1764918490355,0.0002,92360.0,92359.0,1.69488541]
[1764918490966,0.0002,92370.0,92369.0,0.62361896]
[1764918491180,0.0002,92370.0,92369.0,0.66516896]
[1764918491388,0.0002,92380.0,92369.0,0.66516896]
[1764918491389,0.0002,92380.0,92379.0,0.56107254]
[1764918491595,0.0002,92380.0,92379.0,0.63899553]
[1764918491760,0.0002,92380.0,92379.0,0.66169553]
[1764918492267,0.0002,92380.0,92379.0,0.67877553]
[1764918492467,9e-05,92393.0,92392.0,0.62356506]
[1764918492668,9e-05,92393.0,92392.0,0.65604506]
[1764918492892,9e-05,92393.0,92392.0,0.67874506]
[1764918493061,9e-05,92393.0,92392.0,0.68956499]
[1764918493265,0.0002,92420.0,92419.0,0.53940571]
[1764918493461,0.0002,92420.0,92419.0,0.35548]
[1764918493708,0.0002,92420.0,92419.0,0.39975312]
[1764918494533,0.0002,92420.0,92419.0,0.323]
[1764918494984,0.00221589,92420.0,92419.0,0.323]
[1764918495192,0.01046589,92420.0,92419.0,0.34008]
[1764918495423,0.02616589,92420.0,92418.0,0.02157312]
[1764918495651,0.0002,92420.0,92419.0,0.44357611]
[1764918495856,0.0002,92420.0,92419.0,0.46627611]
[1764918496472,0.0002,92420.0,92419.0,0.46227611]
[1764918497294,0.0002,92420.0,92419.0,0.40709611]
[1764918497512,0.06184016,92420.0,92419.0,0.02157312]
[1764918497726,0.06184016,92420.0,92419.0,0.02357312]
[1764918497937,0.06184016,92420.0,92419.0,0.02157312]
[1764918498135,0.06184016,92420.0,92419.0,0.03865312]
[1764918498310,0.06184016,92420.0,92419.0,0.04165312]
[1764918498311,0.05102,92420.0,92419.0,0.04165312]
[1764918498513,0.0002,92420.0,92419.0,0.36465312]
[1764918498931,0.0002,92420.0,92419.0,0.62350182]
[1764918499171,0.0002,92420.0,92419.0,0.42417611]
[1764918499387,0.0002,92420.0,92419.0,0.42517611]
[1764918499671,0.0002,92420.0,92419.0,0.02257312]
[1764918499889,0.03933,92420.0,92419.0,0.03965312]
[1764918500300,0.0002,92420.0,92419.0,0.36265312]
[1764918500525,0.0002,92420.0,92419.0,0.40075312]
[1764918501138,0.0002,92420.0,92419.0,0.46327611]